bitfinex/quotes_ETHUSD_20241103
["timestamp","ask_amount","ask_price","bid_price","bid_amount"]
[1730604319995,0.7782,2439.3,2439.0,8.1999]
[1730604320546,0.7782,2439.3,2439.0,9.31989]
[1730604320745,0.7782,2439.3,2439.1,4.09983]
[1730604320942,8.19795,2439.7,2439.1,4.09983]
[1730604320943,4.87728,2439.6,2439.1,4.09983]
[1730604321142,4.87728,2439.6,2439.0,5.21994]
[1730604322356,4.09922,2439.5,2439.0,5.21994]
[1730604322527,0.7782,2439.6,2439.1,0.521994]
[1730604322743,0.7782,2439.6,2439.2,4.18161064]
[1730604322957,0.7782,2439.6,2439.2,8.28121064]
[1730604323160,0.7782,2439.6,2439.2,4.0996]
[1730604325671,0.7782,2439.6,2439.3,4.09945]
[1730604326543,4.87657,2440.0,2439.5,4.09909]
[1730604326747,0.7782,2440.0,2439.6,4.09891]
[1730604327761,0.7782,2440.0,2439.4,4.09933]
[1730604327992,4.09861,2439.9,2439.4,4.09933]
[1730604328358,0.7782,2440.0,2439.5,4.09912]
[1730604328359,4.87657,2440.0,2439.5,4.09912]
[1730604329468,4.09857,2439.9,2439.4,5.04742688]
[1730604329791,4.09857,2439.9,2439.4,4.96545144]
[1730604330959,4.09857,2439.9,2439.3,4.5615844]
[1730604331158,4.87718,2439.7,2439.1,7.0997]
[1730604331368,4.87718,2439.7,2439.2,4.0997]
[1730604332501,2.75427709,2440.0,2439.5,4.09912]
[1730604332502,0.7782,2439.9,2439.5,4.09912]
[1730604332670,4.09877,2439.8,2439.3,4.09943]
[1730604333204,4.87672,2439.9,2439.4,4.09933]
[1730604333493,0.7782,2439.9,2439.5,4.09919]
[1730604333694,0.7782,2439.9,2439.5,0.08197519]
[1730604334001,2.75427709,2440.6,2439.9,4.09848]
[1730604334002,0.7782,2440.3,2439.9,4.09848]
[1730604334218,0.7782,2440.3,2440.0,4.09836]
[1730604334994,0.7782,2440.3,2439.9,4.09848]
[1730604335199,0.7782,2440.3,2440.1,4.09819]
[1730604335685,0.7782,2440.3,2440.0,4.09834]
[1730604335903,4.87609,2440.3,2439.7,4.09876]
[1730604336067,4.87609,2440.3,2439.8,4.09869]
[1730604336716,4.09809,2440.2,2439.7,4.09876]
[1730604337206,4.87609,2440.3,2439.8,4.09867]
[1730604337615,4.09813,2440.2,2439.7,4.09876]
[1730604338089,4.09813,2440.2,2439.7,8.1975]
[1730604338407,4.09813,2440.2,2439.7,9.01725]
[1730604338768,0.7782,2440.3,2439.9,4.09842]
[1730604339692,0.7782,2440.3,2440.0,4.09828]
[1730604340734,4.87613,2440.3,2439.9,4.09842]
[1730604341026,0.7782,2440.2,2439.6,3.0]
[1730604341242,4.09845,2440.0,2439.6,3.0]
[1730604341799,4.09821,2440.1,2439.6,7.09894]
[1730604342402,4.09819,2440.1,2439.6,7.09894]
[1730604344040,0.7782,2439.8,2439.5,4.09907]
[1730604344337,0.7782,2439.8,2439.1,4.09985]
[1730604344338,0.7782,2439.8,2439.1,7.09987]
[1730604344521,0.7782,2439.8,2439.4,4.09927]
[1730604345044,0.7782,2439.8,2439.4,8.19854]
[1730604345335,0.7782,2439.8,2439.4,4.09927]
[1730604345504,0.7782,2440.0,2439.6,4.09892]
[1730604345698,4.0987,2439.8,2439.1,3.85730913]
[1730604346014,4.09926,2439.5,2439.0,4.09996]
[1730604346654,4.09926,2439.5,2438.9,4.10015]
[1730604346815,0.7782,2439.6,2438.6,4.10057]
[1730604346816,0.7782,2439.0,2438.6,4.10057]
[1730604347239,0.7782,2439.0,2438.4,2.75427709]
[1730604347543,0.7782,2439.0,2438.8,4.10029]
[1730604347857,0.7782,2439.0,2438.6,4.10059]
[1730604349502,0.7782,2439.0,2438.7,4.10051]
[1730604350018,4.87824,2439.0,2438.6,3.0]
[1730604350220,4.87824,2439.0,2438.4,4.10096]
[1730604350221,4.10023,2438.9,2438.4,4.10096]
[1730604350572,0.8021,2438.8,2438.4,4.10096]
[1730604350848,0.8021,2438.8,2438.4,8.20192]
[1730604351000,0.8021,2438.8,2438.4,4.10096]
[1730604351313,0.8021,2438.8,2438.5,4.10086]
[1730604351704,5.37996949,2438.8,2438.2,4.10123]
[1730604351909,4.10057,2438.7,2438.2,4.10123]
[1730604352448,4.10057,2438.7,2438.2,8.20253]
[1730604353229,0.8021,2438.6,2438.2,8.20252]
[1730604353630,0.8021,2438.6,2438.2,4.10123]
[1730604353927,0.8021,2438.6,2438.3,4.10121]
[1730604355839,0.8021,2438.6,2438.4,4.10104]
[1730604356038,0.8021,2438.6,2438.3,4.10121]
[1730604356566,0.8021,2438.6,2438.2,7.10137]
[1730604356950,4.90298,2438.5,2438.0,4.10161]
[1730604357272,0.8021,2438.5,2437.8,6.85619709]
[1730604357569,4.10107,2438.4,2437.9,4.10185]
[1730604357875,8.20254,2438.3,2437.8,6.85619709]
[1730604358084,4.10139,2438.2,2437.8,6.85619709]
[1730604358244,4.10122,2438.3,2437.8,6.85619709]
[1730604358245,0.8021,2438.1,2437.8,6.85619709]
[1730604358473,0.8021,2438.1,2437.8,10.95816709]
[1730604358976,0.8021,2438.1,2437.8,6.85619709]
[1730604359151,0.8021,2438.1,2437.8,4.10192]
[1730604359937,0.8021,2438.1,2437.6,4.10228]
[1730604360143,1.29245,2438.1,2437.6,4.10228]
[1730604360445,4.10172,2438.0,2437.6,4.10228]
[1730604360647,1.29245,2438.1,2437.6,4.10228]
[1730604360975,4.10172,2438.0,2437.4,4.10271]
[1730604361204,4.10209,2437.8,2437.3,4.10288]
[1730604361485,4.10209,2437.8,2437.2,7.71451622]
[1730604361486,4.10223,2437.7,2437.2,4.10293]
[1730604361832,4.10223,2437.7,2437.2,8.20587]
[1730604362261,4.10223,2437.7,2437.2,4.10293]
[1730604362591,0.8021,2437.6,2437.1,4.10323]
[1730604362874,0.8021,2437.6,2436.9,0.0607404]
[1730604362875,1.33976285,2437.6,2436.9,4.1642104]
[1730604363086,0.01,2438.0,2436.9,4.1642104]
[1730604363087,4.10282,2437.4,2436.9,4.1642104]
[1730604363237,4.93532,2437.5,2437.0,4.1034]
[1730604363753,4.93532,2437.5,2436.9,4.1642304]
[1730604364285,4.1029,2437.3,2436.9,0.0607404]
[1730604364488,4.10333,2437.1,2436.9,0.0607404]
[1730604366381,0.8326,2437.0,2436.9,0.0607404]
[1730604368549,0.69563471,2437.7,2436.9,0.0607404]
[1730604368550,0.8326,2437.5,2436.9,0.0607404]
[1730604368746,4.10325,2437.1,2436.9,0.0607404]
[1730604368991,0.8326,2437.0,2436.9,0.0607404]
[1730604370307,0.8326,2437.3,2436.9,4.1641904]
[1730604370596,4.10265,2437.5,2437.0,4.10332]
[1730604370959,4.93512,2437.6,2437.1,4.10322]
[1730604371190,0.8326,2437.6,2437.1,4.10322]
[1730604371506,4.93499,2437.6,2437.1,4.10313]
[1730604371999,4.10217,2437.8,2437.3,4.10281]
[1730604372000,4.10206,2437.8,2437.3,4.10281]
[1730604372208,8.20428,2437.8,2437.3,4.10281]
[1730604372500,4.10206,2437.8,2437.3,8.20561]
[1730604372713,4.10206,2437.8,2437.4,4.10272]
[1730604373263,0.8326,2437.9,2437.4,4.10272]
[1730604373490,0.8326,2437.9,2437.5,4.10253]
[1730604374301,0.8326,2437.9,2437.5,4.923012]
[1730604374474,0.8326,2437.9,2437.5,4.10248]
[1730604374683,4.10214,2437.8,2437.3,4.10277]
[1730604374904,8.20429,2437.8,2437.3,4.10277]
[1730604375402,4.10232,2437.7,2437.2,7.10305]
[1730604375765,4.10214,2437.8,2437.3,4.10288]
[1730604375766,8.20436,2437.8,2437.3,4.10288]
[1730604375967,4.10214,2437.8,2437.3,4.10288]
[1730604376199,8.2043,2437.8,2437.3,4.10288]
[1730604376711,4.10214,2437.8,2437.3,4.10281]
[1730604376916,0.8326,2437.9,2437.4,4.18469171]
[1730604377120,0.8326,2437.9,2437.5,4.10241]
[1730604377682,0.8326,2437.9,2437.4,4.10264]
[1730604377683,4.10211,2437.8,2437.4,4.10264]
[1730604378817,0.8326,2437.9,2437.4,8.20527]
[1730604378818,4.93459,2437.9,2437.4,8.20527]
[1730604379677,4.10209,2437.8,2437.4,4.10263]
[1730604380225,5.838214,2437.9,2437.4,4.10263]
[1730604380377,4.93459,2437.9,2437.4,4.10263]
[1730604380710,4.93459,2437.9,2437.4,8.20523]
[1730604380920,4.93459,2437.9,2437.2,3.0]
[1730604381125,0.8094,2437.5,2436.9,4.1641904]
[1730604381418,4.593936,2437.4,2436.9,4.1641904]
[1730604381616,4.10275,2437.4,2436.9,4.1641904]
[1730604381997,4.10275,2437.4,2437.0,4.10337]
[1730604386288,0.8094,2437.5,2437.0,4.10337]
[1730604386493,0.8094,2437.5,2437.2,4.10305]
[1730604387585,4.91197,2437.5,2437.1,4.10322]
[1730604387785,0.8094,2437.5,2437.1,4.10322]
[1730604388226,0.8094,2437.5,2437.1,8.20635]
[1730604388491,0.8094,2437.5,2437.1,4.10313]
[1730604389516,0.8094,2437.5,2437.2,4.10297]
[1730604390204,0.8094,2437.5,2437.1,4.10313]
[1730604390718,0.8094,2437.5,2437.2,4.10296]
[1730604390879,0.8094,2437.5,2437.1,4.10313]
[1730604393327,0.8094,2437.8,2437.4,4.10263]
[1730604393629,0.8094,2437.8,2437.5,4.10246]
[1730604394009,4.91146,2437.8,2437.4,4.10263]
[1730604394208,0.8094,2437.8,2437.4,8.20526]
[1730604394406,0.8094,2437.8,2437.4,4.10263]
[1730604395418,4.91148,2437.8,2437.3,4.10287]
[1730604395674,4.10235,2437.7,2437.1,4.10322]
[1730604395846,4.10248,2437.6,2437.1,4.10322]
[1730604397207,4.10235,2437.7,2437.1,4.10322]
[1730604397536,4.10247,2437.6,2437.1,4.10315]
[1730604398018,4.10247,2437.6,2437.1,8.2063]
[1730604398764,4.10256,2437.5,2436.9,0.0607404]
[1730604399054,0.8094,2437.4,2437.1,8.20636]
[1730604399347,0.8094,2437.4,2437.1,4.10313]
[1730604399710,0.8094,2437.4,2437.1,8.20628]
[1730604399946,0.8094,2437.4,2437.2,4.10298]
[1730604401847,0.8094,2437.4,2437.2,0.08205292]
[1730604402412,0.8094,2437.4,2437.2,4.18499292]
[1730604403013,0.8094,2437.4,2437.2,0.08205292]
[1730604403216,0.8094,2437.4,2437.1,4.10313]
[1730604403417,0.8094,2437.4,2437.1,8.20627]
[1730604403759,0.8094,2437.4,2437.1,4.10313]
[1730604404746,0.8094,2437.4,2437.2,0.71076581]
[1730604405327,0.8094,2437.4,2437.1,4.10313]
[1730604405531,0.8094,2437.4,2437.2,0.71111685]
[1730604408226,0.8094,2437.4,2437.2,0.92314991]
[1730604408432,0.8094,2437.4,2437.2,0.21203306]
[1730604408622,0.8094,2437.4,2437.2,1.99036596]
[1730604408818,0.8094,2437.4,2437.2,0.21203306]
[1730604409024,0.8094,2437.4,2437.2,0.71135603]
[1730604409520,0.8094,2437.4,2437.1,4.10313]
[1730604409743,0.8094,2437.4,2437.1,4.31517724]
[1730604410221,0.8094,2437.4,2437.1,4.10313]
[1730604410634,0.8094,2437.4,2437.1,4.3151693]
[1730604412864,0.8094,2437.4,2437.2,4.3150793]
[1730604413270,0.8094,2437.4,2437.2,0.2120393]
[1730604413599,1.710838,2437.4,2436.9,0.0607404]
[1730604413798,5.813598,2437.4,2436.9,4.1641804]
[1730604413965,5.813598,2437.4,2437.0,0.21211661]
[1730604414161,4.87371,2437.6,2437.1,4.10307]
[1730604414406,4.87371,2437.6,2437.1,8.20618]
[1730604414594,4.87371,2437.6,2437.2,0.21211661]
[1730604414915,0.7713,2437.6,2437.1,4.10307]
[1730604415263,0.7713,2437.6,2437.2,4.10304]
[1730604415463,0.7713,2438.4,2437.6,4.10231]
[1730604415705,0.30556662,2438.3,2438.0,4.10158]
[1730604416000,0.7713,2438.6,2438.3,4.10113]
[1730604416187,4.87159,2438.9,2438.4,4.10101]
[1730604416392,4.40595735,2438.8,2438.3,4.10113]
[1730604416587,4.40605735,2438.7,2438.1,6.85570709]
[1730604416798,4.10056,2438.7,2438.2,4.78686071]
[1730604417027,8.97189,2438.9,2438.2,4.78689071]
[1730604417184,4.10048,2438.8,2438.2,8.88815071]
[1730604417506,0.30561686,2438.7,2438.3,4.10117]
[1730604417714,0.30561686,2438.7,2438.4,4.10091]
[1730604417866,4.87159,2438.9,2438.4,4.10091]
[1730604418066,0.30555363,2438.8,2438.4,4.10091]
[1730604418303,4.87159,2438.9,2438.4,4.10091]
[1730604418467,0.30540631,2438.8,2438.4,4.10091]
[1730604418667,4.87159,2438.9,2438.4,4.10091]
[1730604418898,8.97193,2438.9,2438.4,4.10091]
[1730604419085,4.4058008,2438.8,2438.4,4.10091]
[1730604419412,4.10039,2438.8,2438.4,4.10091]
[1730604419710,4.10039,2438.8,2438.2,8.88810071]
[1730604419876,4.87159,2438.9,2438.3,1.16423778]
[1730604420071,0.7713,2438.6,2438.1,3.0]
[1730604420300,4.87209,2438.6,2438.1,4.10142]
[1730604420873,4.87209,2438.6,2437.9,4.10172]
[1730604420874,4.10102,2438.5,2437.9,4.10172]
[1730604421197,0.7713,2438.6,2437.9,0.08202816]
[1730604421400,0.7713,2438.6,2438.2,4.10127]
[1730604421799,4.87204,2438.6,2438.0,4.10158]
[1730604421998,4.87204,2438.6,2438.1,4.511688]
[1730604422302,0.7713,2438.6,2437.5,5.75427709]
[1730604422486,0.7713,2438.2,2437.8,4.10201]
[1730604423006,0.7713,2438.2,2437.7,4.10222]
[1730604423210,4.8727,2438.2,2437.7,4.10211]
[1730604424131,0.7713,2438.2,2437.7,4.10211]
[1730604424434,0.7713,2438.2,2437.9,4.10187]
[1730604424822,0.7713,2438.2,2437.7,4.512321]
[1730604424823,4.87279,2438.2,2437.7,4.512321]
[1730604425006,0.7713,2438.2,2437.8,4.10203]
[1730604425922,0.7769,2438.5,2438.2,4.10135]
[1730604426133,0.7769,2438.5,2438.2,4.18337242]
[1730604426336,0.7769,2438.8,2438.5,4.10076]
[1730604427049,0.7769,2438.8,2438.2,4.10134]
[1730604427739,4.87728,2438.8,2438.3,4.10108]
[1730604429130,0.7769,2438.8,2438.4,4.10102]
[1730604429704,0.7769,2438.8,2438.5,4.10077]
[1730604429903,0.7769,2439.2,2438.8,4.10031]
[1730604430128,0.7769,2439.2,2439.1,4.09987]
[1730604430333,1.28138772,2439.5,2438.6,2.83628979]
[1730604430334,0.7769,2439.5,2438.8,4.10037]
[1730604430496,6.15698772,2439.8,2439.4,4.09936]
[1730604430703,0.30538778,2439.7,2439.4,4.09926]
[1730604430938,4.87569,2439.8,2439.3,4.09951]
[1730604431311,0.7769,2439.8,2439.6,4.0989]
[1730604432103,0.7769,2440.1,2439.8,4.09861]
[1730604432306,0.7769,2440.1,2439.8,4.09859]
[1730604432507,4.09762,2440.5,2440.0,4.09824]
[1730604432508,0.7769,2440.3,2440.0,4.09824]
[1730604432815,0.7769,2440.6,2440.2,4.09802]
[1730604433006,0.7769,2440.6,2440.2,4.09793]
[1730604433205,0.7769,2440.6,2439.8,3.16413609]
[1730604433206,0.7769,2440.6,2440.0,4.09822]
[1730604433424,4.09752,2440.5,2440.0,4.09822]
[1730604433600,4.09752,2440.5,2440.0,8.19649]
[1730604434211,4.09752,2440.5,2440.0,4.09822]
[1730604434534,0.7769,2440.6,2440.1,4.09818]
[1730604435315,4.87428,2440.6,2440.1,4.09818]
[1730604435519,0.7769,2440.6,2440.1,4.09818]
[1730604435847,4.87428,2440.6,2440.1,4.09816]
[1730604436041,4.09752,2440.5,2440.0,4.9588859]
[1730604436350,4.09752,2440.5,2440.1,0.49588859]
[1730604437051,8.19517,2440.5,2440.1,0.49588859]
[1730604437268,4.09752,2440.5,2440.1,0.49588859]
[1730604437925,4.09752,2440.5,2440.1,4.59405859]
[1730604438128,0.7769,2440.6,2440.2,4.96722786]
[1730604438321,0.7769,2440.6,2440.2,4.96714786]
[1730604438520,4.09753,2440.5,2440.2,0.86922786]
[1730604438849,4.09753,2440.5,2440.0,4.09823]
[1730604439048,4.09753,2440.5,2440.0,8.19648]
[1730604439439,0.7769,2440.6,2440.1,4.09803]
[1730604440214,4.87429,2440.6,2440.0,4.09823]
[1730604440469,0.8265,2440.6,2439.8,4.09869]
[1730604440664,0.8265,2440.6,2439.6,4.09892]
[1730604440665,4.09832,2440.1,2439.6,4.09892]
[1730604440830,4.09832,2440.1,2439.4,4.09924]
[1730604440831,4.09846,2440.0,2439.4,4.09924]
[1730604441020,4.09846,2440.0,2439.4,4.78459171]
[1730604441217,8.19693,2440.0,2439.5,4.09911]
[1730604441421,8.19692,2440.0,2439.5,4.09918]
[1730604441737,4.09846,2440.0,2439.5,4.09918]
[1730604442258,4.09846,2440.0,2439.6,4.09902]
[1730604442724,4.09846,2440.0,2439.4,4.78459171]
[1730604442925,8.19696,2440.0,2439.4,8.88385171]
[1730604443232,4.09852,2439.9,2439.4,8.88386171]
[1730604443654,4.09846,2440.0,2439.4,8.88386171]
[1730604443818,8.19694,2440.0,2439.4,8.88386171]
[1730604444169,8.19694,2440.0,2439.2,5.75427709]
[1730604444170,4.09879,2439.8,2439.2,4.09958]
[1730604444462,4.09904,2439.6,2439.1,4.09986]
[1730604444761,4.92536,2439.7,2439.2,4.09959]
[1730604444944,4.09907,2439.6,2439.1,4.09986]
[1730604445837,4.09907,2439.6,2439.1,4.919839]
[1730604447649,0.8265,2439.7,2439.1,0.819979]
[1730604447851,0.8265,2439.7,2439.2,8.19919]
[1730604449551,4.92537,2439.7,2439.2,4.09957]
[1730604449859,4.09911,2439.6,2439.1,7.919839]
[1730604450020,4.09921,2439.5,2439.1,3.819979]
[1730604450529,4.92537,2439.7,2439.1,0.819979]
[1730604450724,4.09904,2439.6,2439.1,4.09985]
[1730604451418,4.09929,2439.5,2439.0,4.09992]
[1730604451624,0.8265,2439.4,2439.0,4.09992]
[1730604452152,0.8265,2439.4,2439.1,4.09982]
[1730604453284,0.8265,2439.7,2439.3,4.09953]
[1730604453430,0.8265,2439.7,2439.4,4.09928]
[1730604454572,4.0986,2439.9,2439.4,4.09928]
[1730604454872,4.09894,2439.7,2439.2,7.09968]
[1730604455031,0.8265,2439.6,2439.2,7.09968]
[1730604455232,0.8265,2439.6,2439.3,4.09943]
[1730604455936,0.8265,2439.6,2439.1,4.09971]
[1730604456173,9.02478,2439.6,2439.1,4.09971]
[1730604456372,9.02477,2439.6,2439.1,4.09971]
[1730604456535,4.92561,2439.6,2439.1,4.09971]
[1730604456966,9.02473,2439.6,2439.1,4.09971]
[1730604457160,0.8265,2439.6,2439.0,3.0]
[1730604457345,9.02483,2439.6,2439.0,3.0]
[1730604457532,9.02483,2439.6,2439.1,4.09987]
[1730604457727,4.92564,2439.6,2439.1,4.09987]
[1730604457969,4.09939,2439.4,2439.0,3.0]
[1730604458447,4.09924,2439.5,2439.0,3.0]
[1730604458769,4.09924,2439.5,2439.0,4.09997]
[1730604459565,4.09924,2439.5,2438.9,4.10007]
[1730604459782,4.09946,2439.4,2438.9,4.10007]
[1730604460149,4.09946,2439.4,2438.9,8.20019]
[1730604460753,4.09946,2439.4,2438.9,4.10007]
[1730604461063,0.8265,2439.3,2438.8,4.10037]
[1730604461261,0.8265,2439.3,2438.9,4.10013]
[1730604461459,4.09946,2439.4,2439.0,4.09995]
[1730604461850,4.92576,2439.5,2439.1,4.09986]
[1730604463667,0.8265,2439.5,2439.1,4.09986]
[1730604465288,0.8265,2439.8,2439.3,4.09945]
[1730604465591,4.92519,2439.8,2439.3,4.09945]
[1730604465883,4.92519,2439.8,2439.2,4.09962]
[1730604466258,4.92519,2439.8,2439.2,8.19924]
[1730604466649,4.92519,2439.8,2439.2,4.09962]
[1730604467265,4.92519,2439.8,2439.2,8.19923]
[1730604467470,0.8265,2439.7,2439.0,4.09991]
[1730604467710,0.8265,2439.4,2439.0,4.09991]
[1730604467911,0.8265,2439.4,2438.8,4.10027]
[1730604468096,0.8265,2439.4,2438.9,4.10012]
[1730604469078,0.8265,2439.4,2439.0,4.10002]
[1730604469285,4.92588,2439.4,2439.0,4.10002]
[1730604470292,0.8265,2439.4,2439.0,4.09995]
[1730604472771,4.92587,2439.4,2439.0,4.09995]
[1730604473441,0.8265,2439.4,2439.0,4.09995]
[1730604473803,0.8265,2439.4,2439.0,8.1999]
[1730604474510,0.8265,2439.4,2439.0,4.09995]
[1730604478092,0.8265,2439.4,2439.0,8.19991]
[1730604478479,0.7945,2439.9,2439.1,0.08199736]
[1730604478617,0.7945,2439.9,2439.8,4.09869]
[1730604478797,0.7945,2440.3,2439.9,4.0984]
[1730604478993,0.30640241,2440.2,2439.9,4.0984]
[1730604479309,0.7945,2440.3,2439.9,4.0984]
[1730604479507,0.3064336,2440.2,2439.8,8.19728]
[1730604479741,1.283704,2440.3,2439.8,8.19728]
[1730604479916,0.30643852,2440.2,2439.8,8.19728]
[1730604480117,0.7945,2440.3,2440.0,4.0982]
[1730604480327,0.7945,2440.3,2440.2,4.09802]
[1730604480512,0.7945,2440.7,2440.2,4.09802]
[1730604480848,4.89296969,2440.6,2440.1,4.09818]
[1730604481032,0.30644669,2440.5,2440.1,4.09818]
[1730604482015,0.30644669,2440.5,2440.1,8.19629]
[1730604482227,0.30644669,2440.5,2440.1,4.0981]
[1730604482418,0.30644669,2440.5,2440.1,8.19621]
[1730604482615,0.30644669,2440.5,2440.1,4.0981]
[1730604483337,1.28491366,2440.5,2440.1,4.0981]
[1730604483649,0.97846697,2440.5,2440.1,4.0981]
[1730604483822,4.09737,2440.6,2440.1,4.0981]
[1730604484020,0.30644841,2440.5,2440.1,4.0981]
[1730604484221,4.09737,2440.6,2440.1,4.0981]
[1730604484471,0.30645555,2440.5,2439.9,4.0984]
[1730604484646,0.7818,2440.3,2439.7,4.09875]
[1730604484957,4.88006,2440.1,2439.5,4.09907]
[1730604486058,4.88006,2440.1,2439.5,8.19819]
[1730604486360,4.88006,2440.1,2439.6,4.099]
[1730604486561,5.77788,2440.1,2439.6,4.099]
[1730604486770,4.09837,2440.0,2439.5,4.09907]
[1730604487062,0.7818,2439.8,2439.5,4.09918]
[1730604489426,0.7818,2439.8,2439.0,3.819991]
[1730604489427,0.7818,2439.7,2439.2,4.09959]
[1730604489749,0.7818,2439.7,2439.0,0.819991]
[1730604489750,0.7818,2439.7,2439.3,4.09945]
[1730604491582,0.7818,2439.7,2439.4,4.09934]
[1730604493983,0.7818,2439.7,2439.2,4.09959]
[1730604494186,0.7818,2439.7,2439.3,4.09941]
[1730604494539,0.7818,2439.7,2439.3,4.09939]
[1730604496277,2.07198648,2440.0,2439.4,0.08198509]
[1730604496479,0.7818,2440.0,2439.7,4.09872]
[1730604496684,0.7818,2440.0,2439.8,4.09867]
[1730604497904,0.7818,2440.0,2439.7,4.09872]
[1730604498569,0.7818,2440.0,2439.5,4.09904]
[1730604498783,0.7818,2440.0,2439.6,4.09901]
[1730604500160,0.7818,2440.0,2439.6,4.09902]
[1730604500806,0.7818,2440.0,2439.7,4.09877]
[1730604501099,0.7818,2440.0,2439.7,4.09878]
[1730604501697,0.7818,2440.0,2439.6,4.09902]
[1730604502063,0.7818,2440.0,2439.7,4.09879]
[1730604503068,0.7818,2440.0,2439.6,4.09902]
[1730604503277,0.7818,2440.0,2439.6,4.508922]
[1730604504208,0.7818,2440.0,2439.7,4.09878]
[1730604505203,0.7818,2440.0,2439.6,0.409902]
[1730604505417,0.8068,2440.1,2439.1,3.85716285]
[1730604505719,1.29018648,2440.2,2439.2,4.09961]
[1730604505720,0.8068,2439.7,2439.2,4.09961]
[1730604506024,4.90566,2439.7,2439.2,4.09961]
[1730604506218,0.8068,2439.7,2439.2,4.09961]
[1730604506607,0.8068,2439.7,2439.3,4.09951]
[1730604506815,0.8068,2439.7,2439.4,0.41814951]
[1730604508320,0.8068,2439.7,2439.3,4.09944]
[1730604509282,4.9057,2439.7,2439.1,4.09972]
[1730604509827,4.8557,2439.7,2439.2,4.09963]
[1730604511724,1.28797859,2439.9,2438.9,0.85872654]
[1730604511927,1.28797859,2439.9,2438.6,4.10069]
[1730604511928,4.0998,2439.2,2438.6,4.10069]
[1730604512090,5.38701859,2439.6,2438.5,4.95957654]
[1730604512091,4.09987,2439.1,2438.5,4.95957654]
[1730604512302,4.09987,2439.1,2438.5,4.10085]
[1730604512604,1.28797859,2439.4,2438.3,4.10108]
[1730604512605,0.8068,2438.8,2438.3,4.10108]
[1730604512809,0.80048202,2438.8,2438.3,4.10108]
[1730604513052,4.10004,2439.0,2438.1,4.10142]
[1730604513200,4.10055,2438.7,2437.9,4.10177]
[1730604513546,4.10055,2438.7,2437.9,8.20357]
[1730604513547,4.1009,2438.5,2437.9,8.20357]
[1730604514754,4.10131,2438.3,2437.7,4.1021]
[1730604514931,4.10131,2438.3,2437.7,8.20423]
[1730604515996,0.8068,2438.2,2437.7,8.20423]
[1730604516196,0.8068,2438.2,2437.7,4.1021]
[1730604516438,0.8068,2438.2,2437.8,4.10203]
[1730604516637,0.8068,2438.2,2437.9,4.10179]
[1730604516796,0.8068,2438.2,2437.8,0.1383312]
[1730604516995,0.8068,2438.2,2437.8,4.2403712]
[1730604517341,0.8068,2438.2,2437.8,4.10204]
[1730604517649,0.8068,2438.2,2437.7,4.1022]
[1730604517943,0.8068,2438.2,2437.6,4.10229]
[1730604518120,4.10163,2438.1,2437.6,4.10229]
[1730604518321,5.398993,2438.2,2437.6,4.10229]
[1730604519009,4.1016,2438.1,2437.6,4.10229]
[1730604519208,5.398993,2438.2,2437.6,8.2046]
[1730604519408,9.00967,2438.2,2437.6,4.92275]
[1730604519642,4.90819,2438.2,2437.6,4.92275]
[1730604519850,9.00972,2438.2,2437.6,4.92275]
[1730604520057,4.90819,2438.2,2437.6,9.02506]
[1730604520356,4.90819,2438.2,2437.6,9.02504]
[1730604520850,4.90819,2438.2,2437.6,4.92275]
[1730604521634,9.00973,2438.2,2437.6,4.92275]
[1730604521835,4.90819,2438.2,2437.6,4.92275]
[1730604522148,0.8068,2438.2,2437.7,4.10214]
[1730604522356,0.8068,2438.2,2437.7,5.004629]
[1730604522521,4.90821,2438.2,2437.7,5.004629]
[1730604522856,0.8068,2438.2,2437.7,5.004619]
[1730604523262,4.90819,2438.2,2437.7,5.004619]
[1730604523607,4.90819,2438.2,2437.8,0.9927369]
[1730604524067,0.8068,2438.2,2437.8,0.9927369]
[1730604524245,0.8068,2438.2,2437.6,5.00478663]
[1730604524616,0.8068,2438.2,2437.6,4.92275]
[1730604524929,4.90818,2438.2,2437.7,4.10208]
[1730604525134,0.8068,2438.4,2437.9,4.10175]
[1730604525348,4.10136,2438.3,2438.0,0.41837866]
[1730604525541,4.10136,2438.3,2437.8,4.10205]
[1730604526659,4.10147,2438.2,2437.6,4.92273]
[1730604526845,4.90841,2438.1,2437.6,4.92273]
[1730604528650,4.90841,2438.1,2437.6,9.02504]
[1730604528840,0.8068,2438.1,2437.6,9.02504]
[1730604529159,0.8068,2438.1,2437.7,0.908134]
[1730604529542,0.8068,2438.1,2437.7,5.010344]
[1730604530141,0.8068,2438.1,2437.8,4.10196]
[1730604530354,0.7641,2438.3,2437.8,4.10196]
[1730604530542,4.1014,2438.2,2437.8,4.10196]
[1730604530755,4.1014,2438.2,2437.8,5.0952414]
[1730604530956,0.7641,2438.3,2437.9,4.10188]
[1730604531963,0.7641,2438.3,2438.1,4.10141]
[1730604532171,0.7641,2438.5,2438.2,4.10129]
[1730604533377,4.10055,2438.7,2438.2,4.921558]
[1730604533378,0.7641,2438.7,2438.2,4.921558]
[1730604533591,4.86442,2438.9,2438.4,4.10096]
[1730604535367,0.7641,2438.9,2438.4,4.10095]
[1730604536049,4.86431,2438.9,2438.3,4.10119]
[1730604536251,0.7641,2438.9,2438.4,4.10102]
[1730604536984,0.7641,2438.9,2438.3,0.9079048]
[1730604537284,0.7641,2439.2,2438.9,4.10017]
[1730604537447,0.7641,2439.2,2438.8,4.10021]
[1730604537788,0.7641,2439.2,2438.9,4.510211]
[1730604538196,4.09922,2439.5,2438.9,0.410021]
[1730604538197,0.7641,2439.5,2438.9,0.410021]
[1730604538364,0.7641,2439.5,2439.0,0.13829072]